[Event "2nd Memorial Petro Katsan 2023"]
[Site "Chernonograd"]
[Date "2023.01.22"]
[Round "3"]
[White "Tsertsvadze, Anatoliy"]
[Black "Tymchyshyn, Volodymyr"]
[Result "0-1"]
[ECO "D03"]
[WhiteElo "1733"]
[BlackElo "1267"]
[Annotator "NA RC COMBH"]
[PlyCount "104"]
[EventDate "2023.01.24"]
[EventRounds "9"]
[EventCountry "UKR"]
[SourceTitle "playchess.com"]
[Source "ChessBase"]
[SourceQuality "1"]
[TimeControl "600+5"]

1. d4 Nf6 2. Nf3 e6 3. Bg5 Be7 4. e3 d5 5. Bd3 h6 6. Bh4 Nbd7 7. Nbd2 c5 8. c3 b6 9. O-O Bb7 10. Rc1 Rc8 11. Bb1 Nh5 12. Bxe7 Qxe7 13. Ne5 Nxe5 14. Qxh5 Nd7 15. f4 Nf6 16. Qh4 Ne4 17. Qxe7+ Kxe7 18. Nxe4 dxe4 19. f5 exf5 20. Rxf5 f6 21. Rcf1 Rhf8 22. dxc5 Rxc5 23. Rxc5 bxc5 24. Rd1 Ke6 25. b4 cxb4 26. cxb4 Bd5 27. a3 Rc8 28. Kf2 Rc3 29. a4 Rb3 30. b5 Ra3 31. Rd4 Ra1 32. Bxe4 Bxe4 33. Rxe4+ Kd5 34. Rd4+ Ke6 35. Kf3 Rf1+ 36. Ke2 Ra1 37. h4 Ra2+ 38. Kf3 h5 39. g3 g5 40. hxg5 fxg5 41. Rc4 Kd5 42. Rd4+ Ke5 43. Rc4 g4+ 44. Rxg4 hxg4+ 45. Kxg4 Rxa4+ 46. Kh5 Kf5 47. Kh6 Rg4 48. Kh5 Rxg3 49. e4+ Kxe4 50. Kh4 Rg8 51. Kh5 Kd5 52. Kh6 Kc5 0-1

[Event "2nd Memorial Petro Katsan 2023"]
[Site "Chernonograd"]
[Date "2023.01.22"]
[Round "3"]
[White "Karpinets, Andrian"]
[Black "Kikh, Andriy"]
[Result "1-0"]
[ECO "B40"]
[WhiteElo "1370"]
[BlackElo "1746"]
[Annotator "NA RC COMBH"]
[PlyCount "91"]
[EventDate "2023.01.24"]
[EventRounds "9"]
[EventCountry "UKR"]
[SourceTitle "playchess.com"]
[Source "ChessBase"]
[SourceQuality "1"]
[TimeControl "600+5"]

1. e4 e6 2. d4 c5 3. Nf3 cxd4 4. Nxd4 d5 5. Bb5+ Bd7 6. exd5 e5 7. Bxd7+ Nxd7 8. Nb5 a6 9. N5c3 Bc5 10. Nd2 h5 11. Nde4 Ne7 12. d6 Nf5 13. Bg5 f6 14. Qd5 Nd4 15. O-O-O Qb6 16. Na4 Qc6 17. Qxc6 bxc6 18. Naxc5 fxg5 19. Rhe1 O-O-O 20. c3 Nf5 21. Nxd7 Rxd7 22. Nxg5 Re8 23. f4 Rxd6 24. Rxd6 Nxd6 25. Rxe5 Rxe5 26. fxe5 Nc4 27. e6 Kd8 28. b3 Ne3 29. Kd2 Nxg2 30. Kd3 Ke7 31. Ne4 Kxe6 32. Nc5+ Kd5 33. Nxa6 Nf4+ 34. Ke3 Ne6 35. c4+ Kd6 36. Nb4 g5 37. Nd3 g4 38. Nf4 Ng7 39. Ke4 h4 40. b4 Ne8 41. a4 Nf6+ 42. Kf5 g3 43. hxg3 h3 44. Nxh3 Nd7 45. Nf4 Ne5 46. c5+ 1-0

[Event "2nd Memorial Petro Katsan 2023"]
[Site "Chernonograd"]
[Date "2023.01.22"]
[Round "3"]
[White "Stoyanovskyi, Nazar"]
[Black "Korchevskyi, Volodymyr"]
[Result "1/2-1/2"]
[ECO "B45"]
[WhiteElo "1302"]
[BlackElo "1244"]
[Annotator "NA RC COMBH"]
[PlyCount "83"]
[EventDate "2023.01.24"]
[EventRounds "9"]
[EventCountry "UKR"]
[SourceTitle "playchess.com"]
[Source "ChessBase"]
[SourceQuality "1"]
[TimeControl "600+5"]

1. e4 c5 2. Nf3 e6 3. d4 cxd4 4. Nxd4 Nf6 5. Nc3 Nc6 6. Bg5 Be7 7. Nxc6 bxc6 8. e5 Nd5 9. Nxd5 cxd5 10. Bxe7 Qxe7 11. c3 O-O 12. Bd3 d6 13. exd6 Qxd6 14. O-O Bb7 15. c4 Qc6 16. Qf3 dxc4 17. Qxc6 Bxc6 18. Bxc4 Rab8 19. b3 Rfd8 20. Rad1 Kf8 21. f3 Ke7 22. Kf2 a5 23. Rxd8 Rxd8 24. Ke2 a4 25. Rd1 Rxd1 26. Kxd1 axb3 27. axb3 Kd6 28. Kd2 Kc5 29. Kc3 Bb5 30. b4+ Kc6 31. Bxb5+ Kxb5 32. g3 e5 33. f4 e4 34. f5 e3 35. Kd3 Kxb4 36. Kxe3 Kc5 37. Ke4 Kd6 38. g4 f6 39. h4 h6 40. Kd4 Kc6 41. Kc4 Kd6 42. Kd4 1/2-1/2

[Event "2nd Memorial Petro Katsan 2023"]
[Site "Chernonograd"]
[Date "2023.01.22"]
[Round "3"]
[White "Tyurin, Rostyslav"]
[Black "Soroka, Denys"]
[Result "0-1"]
[ECO "C50"]
[WhiteElo "1262"]
[BlackElo "1624"]
[Annotator "NA RC COMBH"]
[PlyCount "138"]
[EventDate "2023.01.24"]
[EventRounds "9"]
[EventCountry "UKR"]
[SourceTitle "playchess.com"]
[Source "ChessBase"]
[SourceQuality "1"]
[TimeControl "600+5"]

1. e4 e5 2. Nf3 Nc6 3. Nc3 Nb8 4. Nb1 Nc6 5. Nc3 Bc5 6. Bc4 Nf6 7. d3 h6 8. h3 O-O 9. O-O d6 10. Be3 Bb6 11. Bxb6 axb6 12. Nh2 Nd4 13. Ne2 Ne6 14. f4 exf4 15. Nxf4 Nxf4 16. Rxf4 c6 17. a3 d5 18. exd5 Nxd5 19. Bxd5 Qxd5 20. Qd2 Re8 21. Raf1 Re7 22. Ng4 Bxg4 23. Rxg4 Qd6 24. Qf2 b5 25. Kh1 Rae8 26. Qf3 Qc7 27. Qf6 g6 28. Rgf4 Re1 29. Kg1 Rxf1+ 30. Rxf1 Re6 31. Qf3 Qe7 32. Rf2 Re1+ 33. Kh2 Qe5+ 34. g3 Qe6 35. c3 Re3 36. Qf4 g5 37. Qd4 Qe5 38. Qxe5 Rxe5 39. d4 Re3 40. Kg2 Kg7 41. Rf3 Re2+ 42. Rf2 Re1 43. g4 Kg6 44. Kf3 Rh1 45. Kg2 Rd1 46. Kf3 Rd3+ 47. Kg2 b6 48. Rf5 Rd2+ 49. Rf2 Rxf2+ 50. Kxf2 f5 51. b3 Kf6 52. Kf3 f4 53. Ke4 Ke6 54. c4 bxc4 55. bxc4 Kd6 56. a4 Kc7 57. h4 Kd6 58. hxg5 hxg5 59. Kf3 Kc7 60. Ke4 Kb7 61. Kf3 Ka6 62. Ke4 b5 63. axb5+ cxb5 64. cxb5+ Kxb5 65. d5 Kb6 66. d6 Kc6 67. Ke5 Kd7 68. Ke4 Kxd6 69. Kf3 Ke5 0-1

[Event "2nd Memorial Petro Katsan 2023"]
[Site "Chernonograd"]
[Date "2023.01.22"]
[Round "3"]
[White "Hychkevych, Vitaliy"]
[Black "Volkov, Roman K"]
[Result "1-0"]
[ECO "A85"]
[WhiteElo "1251"]
[BlackElo "1777"]
[Annotator "NA RC COMBH"]
[PlyCount "69"]
[EventDate "2023.01.24"]
[EventRounds "9"]
[EventCountry "UKR"]
[SourceTitle "playchess.com"]
[Source "ChessBase"]
[SourceQuality "1"]
[TimeControl "600+5"]

1. d4 f5 2. c4 Nf6 3. Nc3 e6 4. Bg5 Be7 5. Nf3 O-O 6. e3 h6 7. Bh4 d5 8. cxd5 Nxd5 9. Bxe7 Nxe7 10. Bc4 c6 11. O-O b5 12. Bb3 Nd5 13. Bxd5 exd5 14. Ne5 Qf6 15. Rc1 Nd7 16. Nd3 Bb7 17. Qb3 a5 18. a3 a4 19. Qc2 Nb6 20. Nc5 Rf7 21. Nb1 Rc8 22. Nd2 Nc4 23. Nxc4 dxc4 24. Rfd1 Rd8 25. f3 f4 26. exf4 Rxd4 27. Qf2 Rxd1+ 28. Rxd1 Qxf4 29. Rd8+ Kh7 30. Qc2+ g6 31. Qc3 g5 32. Qh8+ Kg6 33. Rg8+ Kh5 34. g4+ Kh4 35. Qxh6# 1-0

[Event "2nd Memorial Petro Katsan 2023"]
[Site "Chernonograd"]
[Date "2023.01.22"]
[Round "4"]
[White "Koptsiukh, Vladimir"]
[Black "Melnychuk, Yuriy"]
[Result "0-1"]
[ECO "C41"]
[WhiteElo "2021"]
[BlackElo "1385"]
[Annotator "TA"]
[PlyCount "73"]
[EventDate "2023.01.24"]
[EventRounds "9"]
[EventCountry "UKR"]
[SourceTitle "playchess.com"]
[Source "ChessBase"]
[SourceQuality "1"]
[TimeControl "600+5"]

{[%evp 9,73,0,0,-33,-9,-28,-33,-67,-54,-119,-104,-135,-95,-144,-79,-127,-111,-186,-206,-201,-198,-186,-179,-210,-193,-193,-161,-189,-169,-210,-88,-404,-395,-416,-277,-458,-370,-450,-200,-204,-100,-489,-265,-833,-803,-1435,-1429,-1385,-1400,-6014,-788,-867,-874,-1171,-753,-1287,-745,-739,-695,-1069,-1067,-978,-961,-4998,-310,-295]} 1. e4 d6 2. d4 Nf6 3. Nc3 Nbd7 4. Nf3 e5 5. dxe5 dxe5 6. Bg5 {C41: Philidor Defence.} Be7 7. Qd2 c6 8. O-O-O {Black is slightly better.} Qc7 9. h4 (9. Nh4 $1 $15) 9... b5 10. Bd3 {[#]} Nc5 $146 ({Predecessor:} 10... Bb4 11. a3 Ba5 12. Kb1 Rb8 13. b4 Bb6 14. h5 h6 15. Bh4 a5 16. Kb2 Ra8 {1-0 Shahaliyev,I (2413)-Tomb,M (2084) Titled Tuesday intern op 23rd Mar blitz 2021 (8)}) 11. Be3 (11. Ne2 $142) 11... Nxd3+ (11... O-O $142 12. Bg5 h6 13. Bxf6 Bxf6) 12. Qxd3 (12. cxd3 $142 Bg4 13. Kb1) 12... Be6 13. Ng5 (13. Bg5 $17 {might work better.}) 13... Bc4 $1 $19 14. Qd2 Rd8 15. Qe1 Rxd1+ 16. Qxd1 b4 17. Nb1 (17. b3 $2 bxc3 18. Qe1 Qa5 19. bxc4 h6 $19) 17... h6 ({Not} 17... Bxa2 18. Nd2 $17) 18. b3 Bb5 19. Nh3 {[#]} O-O ({Inferior is} 19... Nxe4 20. Qg4 Nf6 21. Qxg7 $11) (19... c5 $1 $19 {has better winning chances. White must now prevent ...0-0.} 20. Nd2 O-O) 20. Qf3 $2 {[%mdl 8192]} (20. g4 $17 {was the crucial defense.}) 20... c5 {Strongly threatening ...c4.} 21. g4 Bc6 22. Nd2 (22. Qe2 {was worth a try.} Nxe4 {[%mdl 64] Discovered Attack} 23. Rg1) 22... Qb7 {[%cal Rf6e4]} 23. Qg3 Bxe4 (23... Nxe4 $142 24. Nxe4 Bxe4) 24. f3 {[#]} Bh7 {This pair of bishops is nice.} (24... Bg6 $1 $19 {is more deadly.} 25. h5 Bh7) 25. Qxe5 {[%mdl 8192]} (25. g5 $17 {is tougher.} Nd5 26. gxh6) 25... Nd5 (25... Nxg4 $142 26. Qf4 Qa6) 26. Nc4 (26. g5 Qd7 27. Nf4 Nxe3 {[%mdl 64] Deflection} 28. Qxe3 hxg5 29. Nd5) 26... Bf6 (26... Bxh4 $2 {too greedy.} 27. Bxc5 Bf6 28. Qh2 $19) 27. Qg3 Nxe3 28. Nxe3 Qa6 {[%cal Of8d8]} 29. Nd5 Bc3 (29... Qxa2 $142 30. Rh2 Rd8) 30. Nxc3 bxc3 31. a4 Qe2 {[%csl Gh7][%cal Re2c2]} 32. Qh2 Re8 {[%cal Oe2e1]} 33. Qxe2 Rxe2 {[%cal Be8e2,Be2c2,Bc2b2][%mdl 32]} 34. Nf4 Rxc2+ 35. Kd1 Rb2 {( -> ...Rb1+)} 36. Re1 c2+ $2 (36... Rxb3 $2 37. Re8#) (36... Rb1+ 37. Ke2 c2) 37. Kd2 {Weighted Error Value: White=1.78/Black=1.09} 0-1

[Event "2nd Memorial Petro Katsan 2023"]
[Site "Chernonograd"]
[Date "2023.01.22"]
[Round "4"]
[White "Makhnivchyk, Andriy"]
[Black "Kozak, Dmytro"]
[Result "0-1"]
[ECO "C45"]
[WhiteElo "1712"]
[BlackElo "1937"]
[Annotator "TA"]
[PlyCount "166"]
[EventDate "2023.01.24"]
[EventRounds "9"]
[EventCountry "UKR"]
[SourceTitle "playchess.com"]
[Source "ChessBase"]
[SourceQuality "1"]
[TimeControl "600+5"]

{[%evp 10,166,54,44,106,107,106,109,142,94,118,59,59,52,75,64,74,52,62,77,87,5,6,6,10,13,37,0,7,5,0,0,0,18,56,0,39,0,0,0,0,0,35,0,0,-76,91,102,253,228,211,-212,-168,-187,-67,-56,-29,-243,-233,-224,-187,-267,-187,-592,-698,-640,-677,-679,-667,-12836,-12836,-12835,-255,-483,-240,-691,-172,-172,-172,-172,-172,-172,-172,-172,-172,-172,-155,-172,-172,-165,-165,-165,-165,-165,-165,-165,-165,-165,-165,-165,-165,-12841,-12842,-12842,-165,-12849,-12849,-12850,-12850,-12850,-27999,-27999,-27999,-27999,-27999,-27999,-27999,-27999,-27999,-27999,-27999,-27999,-27999,-27999,-27999,-27999,-27999,-27999,-27999,-27999,-27999,-27999,-27999,-27999,-27999,-27999,-27999,-27999,-27999,-27999,-27999,-27999,-27999,-27999,-27999,-27999,-27999,-27999,-27999,-27999,-27999,-27999,-27999,-27999,-27999,-27999,-27999,-27999,-27999]} 1. e4 e5 2. Nf3 Nc6 3. d4 exd4 4. Nxd4 Nxd4 5. Qxd4 Qf6 6. Be3 Be7 {C45: Scotch Game.} ({Black should try} 6... Qxd4 $14 7. Bxd4 Ne7) 7. Nc3 $16 {Black must now prevent Nd5.} Qxd4 8. Bxd4 {[%cal Oc3d5] Nd5! is the strong threat.} Nf6 {White is better.} 9. O-O-O (9. e5 $142 Ng4 10. h3) 9... d6 {[#]} 10. f3 $146 ({Better is} 10. Nb5 $16 Bd8 11. e5 (11. Bxa7 b6 $15) 11... dxe5 12. Bxe5) ({Predecessor:} 10. h3 Bd7 11. e5 dxe5 12. Bxe5 O-O-O 13. Bb5 Bxb5 14. Nxb5 Rd5 15. Rxd5 Nxd5 16. Rd1 c6 17. Nd6+ Bxd6 18. Bxd6 Rd8 19. Bg3 Nb4 20. Rxd8+ Kxd8 21. a3 Nd5 {½-½ Lombardi,D (820)-Torfs,G (855) RN-2012-0-00466}) 10... a6 11. g4 O-O 12. h4 b5 13. h5 c5 14. Be3 b4 15. Nd5 (15. Ne2 $16) 15... Nxd5 $11 16. Rxd5 Be6 17. Rd2 a5 18. Kb1 a4 19. g5 b3 20. cxb3 axb3 21. a3 Rfd8 22. f4 ({White should play} 22. Bb5 $1 $14) 22... f5 23. gxf6 Bxf6 24. f5 Bf7 25. h6 g6 26. fxg6 Bxg6 27. Bc4+ (27. Rg1 $11) 27... Kf8 $2 (27... d5 $1 $17 {keeps the pressure on.} 28. Rf1 dxc4 29. Rxf6 Re8) 28. Rf1 $16 (28. Bxb3 $2 Bxe4+ 29. Bc2 Bxh1 $19) 28... Bxe4+ $2 (28... Ke7 $16) 29. Kc1 $18 Ke7 30. Bd5 $4 {[%mdl 8192]} (30. Rdf2 $18 d5 31. Bxc5+ (31. Bxb3 Bd4 $11) 31... Ke6 32. Rxf6+ Ke5 33. Ba6 (33. Bxb3 Rdc8 $11)) 30... Bxd5 $19 31. Rxd5 Rg8 (31... Be5 $19 {Threatens to win with ...Kd7.} 32. Rxe5+ dxe5 33. Bg5+ Ke6 34. Bxd8 Rxd8) 32. Re1 $1 $15 ({Much worse is} 32. Bf4 Rg2 33. Re1+ (33. Bxd6+ $2 {is the wrong capture.} Ke6 $19) 33... Kf7 $17) 32... Kd7 33. Bf4 $2 {Black keeps a firm grip on the game.} (33. Red1 $11 {and White has nothing to worry.}) 33... Ra6 $19 34. Rf5 Rg6 {aiming for ...Ra4.} 35. Rd1 (35. Kb1 {keeps fighting.}) 35... c4 36. Rc5 $2 (36. Bd2 {is more resistant.}) 36... Rg2 37. Rxc4 Bxb2+ 38. Kb1 Bxa3 ({Worse is} 38... Rxa3 39. Rxd6+ Ke8 40. Rc8+ Kf7 41. Rc7+ Ke8 42. Rc8+ Kf7 43. Rc7+ Ke8 44. Rc8+ $11) 39. Rcd4 Rb2+ 40. Ka1 Ra2+ (40... Rf2 $142 41. Kb1 b2 42. Bxd6 Rxd6) 41. Kb1 Bc5 (41... Rc2 $142 {Hoping for ...Rb2+.} 42. R4d2 Ra4) 42. R4d2 (42. R4d3) 42... R2a4 $2 (42... Bb4 {( -> ...Bc3)} 43. Rd3 Bc3 44. Rxc3 Ra1+ {[%mdl 64] Skewer} 45. Kb2 Rxd1 46. Rxb3 Ke6) 43. Be5 Rh4 44. Bg7 Rh3 45. Rd3 Rxd3 46. Rxd3 {[%mdl 4096] Endgame KRB-KRB} Rb6 $1 47. Kb2 Kc6 48. Rxb3 {[#]} Kd5 $1 49. Rxb6 Bxb6 {KB-KB} 50. Kc3 {[#]} Ke4 51. Kd2 Bd4 52. Bf8 d5 53. Ke2 Be5 54. Kd1 Kd3 55. Bc5 $2 (55. Bg7 Bg3 56. Bf6) 55... Bf4 56. Bf8 Ke4 $2 (56... Ke3 57. Bg7 Kd3) 57. Bg7 $2 (57. Kc2) 57... Kf5 58. Ke2 Kg6 59. Kd3 Bxh6 60. Be5 {Black mates.} Bg7 61. Bg3 Kf5 62. Ke3 Kg4 63. Kf2 Bd4+ 64. Kg2 h5 {[%cal Bh7h5,Bh5h4,Bh4h3][%mdl 32]} 65. Bd6 Be3 66. Be5 h4 67. Bg7 h3+ 68. Kh2 Bf4+ 69. Kh1 Kf3 70. Bc3 Ke4 71. Bb2 Be5 72. Bc1 d4 {[%cal Bd5d4,Bd4d3][%mdl 32]} 73. Bd2 Kf3 74. Bb4 d3 75. Bd2 Ke2 76. Bb4 Bf4 77. Bc3 Bd2 78. Be5 Be3 79. Bc3 Bd4 {[%mdl 64] Deflection, Promotion} 80. Bb4 Kd1 81. Kh2 Kc2 82. Be1 Bc3 83. Bf2 d2 {Weighted Error Value: White=0.84/Black=0.66} 0-1

[Event "2nd Memorial Petro Katsan 2023"]
[Site "Chernonograd"]
[Date "2023.01.22"]
[Round "4"]
[White "Soroka, Denys"]
[Black "Tymchyshyn, Volodymyr"]
[Result "1-0"]
[ECO "E91"]
[WhiteElo "1624"]
[BlackElo "1267"]
[Annotator "NA RC COMBH"]
[PlyCount "69"]
[EventDate "2023.01.24"]
[EventRounds "9"]
[EventCountry "UKR"]
[SourceTitle "playchess.com"]
[Source "ChessBase"]
[SourceQuality "1"]
[TimeControl "600+5"]

1. d4 Nf6 2. c4 c5 3. d5 b5 4. cxb5 a6 5. e3 axb5 6. Bxb5 Ba6 7. Bxa6 Nxa6 8. Nc3 d6 9. Nf3 g6 10. O-O Bg7 11. e4 O-O 12. Re1 Qd7 13. e5 dxe5 14. Nxe5 Qc7 15. Bf4 Nh5 16. Nxg6 Nxf4 17. Nxf8 Kxf8 18. Qf3 Rb8 19. Rab1 Nb4 20. g3 Nfd3 21. Red1 Ne5 22. Qf5 Ng6 23. a3 Nc2 24. Qxc2 Qe5 25. Re1 Qh5 26. Qe2 Qxe2 27. Nxe2 Rxb2 28. Rxb2 Bxb2 29. a4 Ne5 30. Rb1 Ba3 31. a5 Nf3+ 32. Kg2 Nd2 33. Rb8+ Kg7 34. a6 c4 35. a7 1-0

[Event "2nd Memorial Petro Katsan 2023"]
[Site "Chernonograd"]
[Date "2023.01.22"]
[Round "4"]
[White "Kutsyk, Roman"]
[Black "Stoyanovskyi, Nazar"]
[Result "1-0"]
[ECO "D00"]
[WhiteElo "1456"]
[BlackElo "1302"]
[Annotator "NA RC COMBH"]
[PlyCount "75"]
[EventDate "2023.01.24"]
[EventRounds "9"]
[EventCountry "UKR"]
[SourceTitle "playchess.com"]
[Source "ChessBase"]
[SourceQuality "1"]
[TimeControl "600+5"]

1. d4 d5 2. Bf4 Nc6 3. e3 a6 4. Nd2 Nf6 5. c3 Bf5 6. Qb3 Na5 7. Qa4+ c6 8. b4 b5 9. Qxa5 Qxa5 10. bxa5 e6 11. a3 c5 12. Nb3 c4 13. Nd2 h6 14. Ngf3 Be4 15. h4 Bxf3 16. gxf3 Rg8 17. Rg1 Be7 18. e4 Kd7 19. Bh3 Kc6 20. Bg4 Nxg4 21. fxg4 Bxh4 22. g5 hxg5 23. Bxg5 Bxg5 24. Rxg5 f6 25. Rg6 Kd6 26. Ke2 Ke7 27. Rag1 Kf7 28. f4 Rae8 29. e5 f5 30. Nf3 Re7 31. R6g3 g6 32. Ng5+ Kf8 33. Rh3 Ke8 34. Rgh1 Kd7 35. Rh7 Rb8 36. Rxe7+ Kxe7 37. Rh7+ Ke8 38. Rh8+ 1-0

[Event "2nd Memorial Petro Katsan 2023"]
[Site "Chernonograd"]
[Date "2023.01.22"]
[Round "4"]
[White "Katsan, Danylo"]
[Black "Karpinets, Andrian"]
[Result "1/2-1/2"]
[ECO "D02"]
[WhiteElo "1447"]
[BlackElo "1370"]
[Annotator "NA RC COMBH"]
[PlyCount "102"]
[EventDate "2023.01.24"]
[EventRounds "9"]
[EventCountry "UKR"]
[SourceTitle "playchess.com"]
[Source "ChessBase"]
[SourceQuality "1"]
[TimeControl "600+5"]

1. Nf3 d5 2. d4 Nf6 3. Bf4 e6 4. e3 Bd6 5. Ne5 c5 6. c3 Qc7 7. Nd2 Nbd7 8. Ndf3 O-O 9. Nxd7 Nxd7 10. Bg3 e5 11. dxe5 Nxe5 12. Bxe5 Bxe5 13. Qxd5 Bf6 14. Be2 Be6 15. Qh5 Qb6 16. O-O Qxb2 17. Bd3 g6 18. Qxc5 Rac8 19. Qxa7 Qxc3 20. Rad1 Qc6 21. Nd4 Bxd4 22. Qxd4 Bxa2 23. Be4 Qb5 24. Rd2 Be6 25. Rb2 Qg5 26. Rxb7 Rfd8 27. Qb2 Qh4 28. Rb4 Qg5 29. Bb7 Rb8 30. Bf3 Rbc8 31. g3 Qf5 32. Bg4 Qd5 33. Rd1 Qxd1+ 34. Bxd1 Rxd1+ 35. Kg2 Rcc1 36. Rb8+ Bc8 37. Qf6 Rc7 38. Qf4 Rdc1 39. h4 Kg7 40. Qd4+ f6 41. g4 Bb7+ 42. Kg3 Rg1+ 43. Kf4 Rgc1 44. Qd2 R7c4+ 45. Kg3 Rg1+ 46. Kh2 Rh1+ 47. Kg3 Rg1+ 48. Kh2 Rh1+ 49. Kg3 Rg1+ 50. Kh3 Rh1+ 51. Kg3 Rg1+ 1/2-1/2

[Event "2nd Memorial Petro Katsan 2023"]
[Site "Chernonograd"]
[Date "2023.01.22"]
[Round "4"]
[White "Korchevskyi, Volodymyr"]
[Black "Hychkevych, Vitaliy"]
[Result "0-1"]
[ECO "B22"]
[WhiteElo "1244"]
[BlackElo "1251"]
[Annotator "NA RC COMBH"]
[PlyCount "116"]
[EventDate "2023.01.24"]
[EventRounds "9"]
[EventCountry "UKR"]
[SourceTitle "playchess.com"]
[Source "ChessBase"]
[SourceQuality "1"]
[TimeControl "600+5"]

1. e4 c5 2. c3 d5 3. exd5 Qxd5 4. d4 cxd4 5. cxd4 Nc6 6. Nf3 Nf6 7. Nc3 Qa5 8. Bb5 a6 9. Bxc6+ bxc6 10. O-O Bg4 11. Be3 e6 12. h3 Bh5 13. Rc1 Be7 14. Qe2 O-O 15. Rfd1 Rfd8 16. Bf4 Rac8 17. Qe3 c5 18. Ne4 Nd5 19. Qd2 Qxd2 20. Bxd2 cxd4 21. Ba5 Re8 22. g4 Bg6 23. Rxc8 Rxc8 24. Rxd4 Rc1+ 25. Kh2 Bxe4 26. Rxe4 Bd6+ 27. Kg2 Nf4+ 28. Kh2 Nd3+ 29. Kg2 Rd1 30. Bd2 Bc5 31. Be3 Bxe3 32. Rxe3 Nf4+ 33. Kg3 Nd5 34. Ra3 f6 35. Rxa6 e5 36. Nh4 g6 37. Ra8+ Kg7 38. a4 Rd3+ 39. Kh2 Nf4 40. Ng2 Nxh3 41. b4 Nxf2 42. Ne1 Nxg4+ 43. Kg2 Rb3 44. b5 Ne3+ 45. Kf2 Nd5 46. Ra7+ Kh6 47. Rd7 Nb6 48. Ra7 Nc4 49. Rc7 Rb4 50. Ra7 e4 51. Kg3 Kg5 52. Ng2 Rb3+ 53. Kf2 h5 54. Rc7 Nb6 55. Rc5+ f5 56. a5 Na4 57. Rc4 Nb2 58. Rc5 Nd3+ 0-1

[Event "2nd Memorial Petro Katsan 2023"]
[Site "Chernonograd"]
[Date "2023.01.22"]
[Round "5"]
[White "Kozak, Dmytro"]
[Black "Melnychuk, Yuriy"]
[Result "1-0"]
[ECO "B06"]
[WhiteElo "1937"]
[BlackElo "1385"]
[Annotator "TA"]
[PlyCount "97"]
[EventDate "2023.01.24"]
[EventRounds "9"]
[EventCountry "UKR"]
[SourceTitle "playchess.com"]
[Source "ChessBase"]
[SourceQuality "1"]
[TimeControl "600+5"]

{[%evp 11,97,16,5,1,27,35,25,18,41,15,150,153,139,43,76,60,57,42,79,93,185,0,0,0,49,-6,66,32,41,11,31,22,15,11,18,21,70,-124,-29,-16,-20,-110,-106,-105,-112,-221,-129,-186,-167,-168,-166,-202,-62,-427,-427,-427,-427,-387,-269,-272,-230,-439,-421,-421,-5,-5,-4,-4,-5,-6,0,0,709,0,0,0,0,0,0,-4,0,-6,0,0,67,-9,29984,29985]} 1. e4 d6 2. d4 Nf6 3. Bd3 e5 4. c3 g6 5. Ne2 Bg7 6. O-O O-O 7. h3 {[#] B06: Modern Defence.} exd4 $146 ({Predecessor:} 7... d5 8. exd5 exd4 9. c4 c6 10. Nxd4 cxd5 11. Nc3 Nc6 12. Nxc6 bxc6 13. cxd5 Nxd5 14. Na4 Rb8 {1-0 Nepomniachtchi,I (2720)-Karjakin,S (2760) Wch Blitz 5th 2010 (4)}) 8. cxd4 c5 9. Bg5 {Black must now prevent e5. White has an edge.} Qb6 10. Nd2 Nc6 (10... cxd4 $11 {remains equal.} 11. Nc4 Qa6) 11. Nc4 $1 $16 {[%csl LRb6,LRd6]} Qc7 12. d5 (12. Bf4 $1 $16 {[%cal Rf4d6]}) 12... Nb4 13. Bf4 Ne8 14. Nc3 Nxd3 15. Qxd3 a6 (15... Qd7 $16) 16. Rfe1 $2 (16. Qg3 $18) 16... b5 $11 17. Nd2 c4 (17... Bb7 $11) 18. Qc2 ({White should try} 18. Qe3 $1 $14) 18... Qc5 ({Better is} 18... f5 $11) 19. Nf3 Nf6 20. Rad1 Bb7 21. a3 (21. Be3 $5 {[%cal Re3c5]} Qc7 22. Bd4 $11) 21... Rfe8 22. Be3 Qc7 23. Bd4 Rad8 (23... Nd7 $11) 24. e5 $2 {White is more active.} (24. b3 $14 {keeps the upper hand.}) 24... dxe5 (24... Nxd5 $17 {[%cal Rd6e5]} 25. Nxd5 Bxd5 26. exd6 Rxe1+ 27. Nxe1 Rxd6 28. Bxg7 Kxg7 29. Qc3+ f6) 25. Bxe5 Qc8 {[%cal Rf6d5]} 26. Bxf6 (26. Qd2 $1 $11) 26... Rxe1+ $1 $17 (26... Bxf6 $6 27. Rxe8+ Rxe8 28. Ne4 $11) 27. Nxe1 Bxf6 28. d6 (28. Qd2 $17 {keeps fighting.}) 28... Qc6 (28... Be5 $19 29. a4 Qc6) 29. Qd2 (29. Nd5 $17 Qxd6 30. Nxf6+ Qxf6 31. Qc3) 29... Rd7 30. Qf4 Kg7 31. Qg3 a5 (31... Qc5 $19 {...Bd4 would be deadly.} 32. Qe3 Qxe3 33. fxe3 Be5) 32. Nf3 $2 {[%mdl 8192]} (32. Nc2 $1 $15) 32... b4 $19 33. axb4 axb4 {[%cal Ba5b4,Bb4c3,Bc3c2][%mdl 32]} 34. Ne2 c3 (34... Bxb2 $2 {perishes.} 35. Ne5 Bxe5 36. Qxe5+ f6 37. Qg3) 35. bxc3 bxc3 36. Nfd4 (36. Ne1 {might work better.}) 36... c2 (36... Qxd6 $2 37. Nf5+ (37. Qxc3 Qd5 $17) 37... Kg8 38. Rxd6 $18) 37. Rc1 Bxd4 (37... Qxd6 $2 38. Nf5+ (38. Nxc2 $2 Qd2 $19) 38... Kg8 39. Nxd6 $18) (37... Qe4 $19 38. Qg4 Rxd6 39. Nxc2 Rd2 40. Qxe4 Bxe4) 38. Nxd4 $11 Qd5 (38... Qxd6 $2 39. Nf5+ (39. Nxc2 $2 {too greedy.} Qxg3 40. fxg3 Rc7 $19) 39... Kg8 40. Nxd6 $18) 39. Nxc2 {aiming for Ne3.} Qxd6 40. Qc3+ (40. Qxd6 {simplifies} Rxd6 41. Ne3 h5 42. Rc4) 40... Kg8 (40... Qf6 {simplifies} 41. Qxf6+ Kxf6 42. Ne3 h5) 41. Ne3 {Ng4 is the strong threat.} Qe6 {[%mdl 8192] [#]} (41... h5 $11) 42. Qb2 $2 ({White must play} 42. Ng4 $1 $18 Kf8 43. Re1) 42... h5 43. Rc5 Qe4 {[%cal Od7d1] ( -> ...Rd1+!)} 44. Rc1 {Prevents Rd1+.} Re7 45. Qd2 Kh7 46. Qd8 Qe6 47. Qd4 Qe5 (47... Rd7 $11 48. Qc5 Qe7) 48. Qh4 {[#]} (48. Qxe5 $14 Rxe5 49. Rc7) 48... Qb8 $2 {[%mdl 8192]} 49. Qxe7 {A wild game.   Weighted Error Value: White=0.66/Black=0.51} 1-0

[Event "2nd Memorial Petro Katsan 2023"]
[Site "Chernonograd"]
[Date "2023.01.22"]
[Round "5"]
[White "Kutyra, Myroslav"]
[Black "Gavker, Markiyan"]
[Result "0-1"]
[ECO "D05"]
[WhiteElo "1764"]
[BlackElo "1310"]
[Annotator "NA RC COMBH"]
[PlyCount "46"]
[EventDate "2023.01.24"]
[EventRounds "9"]
[EventCountry "UKR"]
[SourceTitle "playchess.com"]
[Source "ChessBase"]
[SourceQuality "1"]
[TimeControl "600+5"]

1. d4 Nf6 2. Nf3 d5 3. e3 e6 4. Bd3 Bd6 5. O-O O-O 6. Nbd2 Bd7 7. c4 c6 8. Re1 Bc7 9. e4 dxe4 10. Nxe4 Nxe4 11. Rxe4 Na6 12. Rh4 h6 13. Bxh6 gxh6 14. Qd2 Qf6 15. Rxh6 Qf4 16. Qxf4 Bxf4 17. Re1 Bxh6 18. Ne5 Rad8 19. Re4 f5 20. Rh4 Bg5 21. Rh3 Bf4 22. Ng6 Bd6 23. c5 Bc7 0-1